[Event "WYCC 2018 G16"]
[Site "Halkidiki"]
[Date "2018.10.21"]
[Round "3"]
[White "Moerwald, Magdalena"]
[Black "Berdnyk, Mariia"]
[Result "0-1"]
[ECO "B33"]
[WhiteElo "1875"]
[BlackElo "2179"]
[Annotator "NA"]
[PlyCount "54"]
[EventDate "2018.10.20"]
[EventType "swiss"]
[EventCountry "GRE"]
[SourceTitle "playchess.com"]
[Source "ChessBase"]
[SourceQuality "1"]
[TimeControl "40/5400+30:1800+30"]

1. e4 {[%emt 0:00:00]} c5 {[%emt 0:00:00]} 2. Nf3 {[%emt 0:00:00]} Nc6 {[%emt 0:00:00]} 3. d4 {[%emt 0:00:00]} cxd4 {[%emt 0:00:00]} 4. Nxd4 {[%emt 0:00:00]} Nf6 {[%emt 0:00:00]} 5. Nc3 {[%emt 0:00:03]} e6 {[%emt 0:00:00]} 6. a3 {[%emt 0:02:46]} Be7 {[%emt 0:03:45]} 7. Be3 {[%emt 0:01:06]} O-O {[%emt 0:01:13]} 8. Bc4 {[%emt 0:06:04]} a6 {[%emt 0:02:05]} 9. O-O {[%emt 0:03:50]} Qc7 {[%emt 0:01:58]} 10. Bb3 {[%emt 0:01:48]} Ne5 {[%emt 0:07:26]} 11. f3 $11 {[%emt 0:02:19]} b5 {[%emt 0:01:37]} 12. Nce2 {[%emt 0:05:42]} Bb7 {[%emt 0:03:58]} 13. Qe1 {[%emt 0:03:17]} d5 {[%emt 0:07:40]} 14. exd5 {[%emt 0:01:34]} Nxd5 {[%emt 0:01:53]} 15. Bf2 {[%emt 0:02:59]} Bd6 {[%emt 0:07:29]} 16. Ng3 {[%emt 0:03:32]} Ng6 {[%emt 0:08:38]} 17. Rd1 {[%emt 0:10:19]} Rfe8 {[%emt 0:02:57]} 18. Ne4 {[%emt 0:01:40]} Bxh2+ {[%emt 0:00:58]} 19. Kh1 {[%emt 0:00:07]} Be5 {[%emt 0:00:36]} 20. a4 {[%emt 0:07:33]} bxa4 {[%emt 0:03:11]} 21. Bxa4 {[%emt 0:00:17]} Red8 {[%emt 0:02:25]} 22. Bb3 {[%emt 0:07:37]} Ndf4 {[%emt 0:02:26]} 23. c3 {[%emt 0:04:18]} Qe7 {[%emt 0:07:33]} 24. Be3 {[%emt 0:03:12]} Bxe4 {[%emt 0:02:23]} 25. fxe4 {[%emt 0:00:24]} Qg5 {[%emt 0:01:02]} 26. Rd2 {[%emt 0:03:43]} Qh5+ {[%emt 0:01:32]} 27. Kg1 {[%emt 0:00:14]} Nd3 {[%emt 0:01:00]} 0-1

[Event "WYCC 2018 G16"]
[Site "Halkidiki"]
[Date "2018.10.21"]
[Round "3"]
[White "Nayberg, Simona"]
[Black "Palma, Maria"]
[Result "1-0"]
[ECO "C14"]
[WhiteElo "1857"]
[BlackElo "2106"]
[Annotator "NA"]
[PlyCount "85"]
[EventDate "2018.10.20"]
[EventType "swiss"]
[EventCountry "GRE"]
[SourceTitle "playchess.com"]
[Source "ChessBase"]
[SourceQuality "1"]
[TimeControl "40/5400+30:1800+30"]

1. e4 {[%emt 0:00:00]} e6 {[%emt 0:00:00]} 2. d4 {[%emt 0:00:00]} d5 {[%emt 0:00:00]} 3. Nc3 {[%emt 0:00:00]} Nf6 {[%emt 0:00:12]} 4. Bg5 {[%emt 0:00:26]} Be7 {[%emt 0:00:13]} 5. e5 {[%emt 0:00:10]} Nfd7 {[%emt 0:00:05]} 6. Bxe7 {[%emt 0:00:14]} Qxe7 {[%emt 0:00:05]} 7. f4 {[%emt 0:00:54]} O-O {[%emt 0:02:58]} 8. Nf3 c5 {[%emt 0:04:36]} 9. Bd3 {[%emt 0:05:59]} f6 {[%emt 0:09:24]} 10. exf6 {[%emt 0:02:57]} Nxf6 {[%emt 0:02:36]} 11. dxc5 {[%emt 0:02:51]} Qxc5 {[%emt 0:02:36]} 12. Qd2 {[%emt 0:03:17]} Nc6 {[%emt 0:03:26]} 13. O-O-O {[%emt 0:02:57]} Nb4 {[%emt 0:08:12]} 14. Kb1 {[%emt 0:11:44]} a6 {[%emt 0:09:33]} 15. Rhg1 {[%emt 0:08:26]} b5 {[%emt 0:04:37]} 16. g4 {[%emt 0:03:03]} Nxd3 {[%emt 0:01:42]} 17. Qxd3 {[%emt 0:01:13]} b4 $11 {[%emt 0:02:53]} 18. Ne2 {[%emt 0:04:34]} Ne4 {[%emt 0:04:24]} 19. Rdf1 {[%emt 0:06:36]} a5 {[%emt 0:02:24]} 20. Nd2 {[%emt 0:15:20]} Nxd2+ {[%emt 0:10:35]} 21. Qxd2 {[%emt 0:00:02]} a4 {[%emt 0:06:03]} 22. Nd4 {[%emt 0:07:11]} b3 {[%emt 0:03:13]} 23. cxb3 {[%emt 0:02:48]} axb3 {[%emt 0:00:53]} 24. Nxb3 {[%emt 0:02:12]} Qa7 {[%emt 0:05:10]} 25. Nc1 {[%emt 0:01:30]} Qa4 {[%emt 0:06:46]} 26. Qe3 {[%emt 0:07:15]} Bd7 {[%emt 0:02:20]} 27. Rg3 {[%emt 0:03:42]} Rfc8 {[%emt 0:02:14]} 28. Qb3 {[%emt 0:03:46]} Qa5 {[%emt 0:03:50]} 29. Rc3 {[%emt 0:02:43]} Bb5 {[%emt 0:01:35]} 30. Rxc8+ {[%emt 0:01:26]} Rxc8 {[%emt 0:00:01]} 31. Rf3 {[%emt 0:00:39]} Ba4 {[%emt 0:01:00]} 32. Qe3 {[%emt 0:00:51]} Bc2+ {[%emt 0:01:02]} 33. Ka1 {[%emt 0:00:01]} Be4 {[%emt 0:00:15]} 34. Rf1 {[%emt 0:00:29]} Rc2 {[%emt 0:00:46]} 35. Nb3 {[%emt 0:01:01]} Qa6 {[%emt 0:00:48]} 36. Rc1 {[%emt 0:00:50]} Re2 {[%emt 0:00:47]} 37. Qc3 {[%emt 0:00:29]} Rxh2 {[%emt 0:00:16]} 38. Nc5 {[%emt 0:00:35]} Qe2 {[%emt 0:00:48]} 39. Nxe6 {[%emt 0:00:34]} Bc2 {[%emt 0:00:31]} 40. Qc8+ {[%emt 0:00:00]} Kf7 {[%emt 0:00:00]} 41. Qd7+ {[%emt 0:03:38]} Kf6 {[%emt 0:00:52]} 42. g5+ {[%emt 0:00:30]} Kg6 {[%emt 0:00:29]} 43. Qe8+ {[%emt 0:00:35]} 1-0

[Event "WYCC 2018 G16"]
[Site "Halkidiki"]
[Date "2018.10.21"]
[Round "3"]
[White "Nguyen, Vu Thu Hien"]
[Black "Gomez Barrera, Javiera Belen"]
[Result "1/2-1/2"]
[ECO "E62"]
[WhiteElo "1841"]
[BlackElo "2136"]
[Annotator "NA"]
[PlyCount "103"]
[EventDate "2018.10.20"]
[EventType "swiss"]
[EventCountry "GRE"]
[SourceTitle "playchess.com"]
[Source "ChessBase"]
[SourceQuality "1"]
[TimeControl "40/5400+30:1800+30"]

1. d4 {[%emt 0:00:00]} Nf6 {[%emt 0:00:00]} 2. Nf3 {[%emt 0:00:00]} g6 {[%emt 0:00:00]} 3. g3 {[%emt 0:00:00]} Bg7 {[%emt 0:00:00]} 4. Bg2 {[%emt 0:00:00]} d6 {[%emt 0:00:02]} 5. c4 {[%emt 0:00:00]} O-O {[%emt 0:00:09]} 6. O-O {[%emt 0:00:00]} Nc6 {[%emt 0:00:07]} 7. Nc3 {[%emt 0:00:06]} e5 {[%emt 0:00:12]} 8. dxe5 {[%emt 0:00:44]} dxe5 {[%emt 0:00:07]} 9. Qc2 {[%emt 0:00:06]} Be6 {[%emt 0:23:22]} 10. Rd1 {[%emt 0:00:31]} Qc8 {[%emt 0:08:17]} 11. Bg5 {[%emt 0:13:22]} h6 {[%emt 0:10:40]} 12. Bxf6 {[%emt 0:01:05]} Bxf6 {[%emt 0:00:02]} 13. Ne4 {[%emt 0:00:17]} Bg7 {[%emt 0:06:14]} 14. Nc5 {[%emt 0:10:44]} Bg4 {[%emt 0:10:38]} 15. Qa4 {[%emt 0:06:26]} Rb8 {[%emt 0:03:47]} 16. Rd2 {[%emt 0:01:59]} a6 {[%emt 0:09:01]} 17. Rad1 {[%emt 0:01:10]} Nd4 {[%emt 0:01:29]} 18. b4 {[%emt 0:16:38]} c6 {[%emt 0:07:48]} 19. Nxd4 {[%emt 0:05:26]} exd4 {[%emt 0:00:08]} 20. Nb3 {[%emt 0:00:40]} d3 {[%emt 0:01:11]} 21. f3 {[%emt 0:00:49]} dxe2 {[%emt 0:01:14]} 22. Rxe2 {[%emt 0:00:06]} Be6 {[%emt 0:01:07]} 23. c5 {[%emt 0:00:42]} Re8 {[%emt 0:08:54]} 24. Na5 {[%emt 0:04:27]} Bd5 {[%emt 0:01:18]} 25. Qc2 {[%emt 0:02:40]} Rxe2 {[%emt 0:03:47]} 26. Qxe2 {[%emt 0:00:02]} Qe6 {[%emt 0:01:17]} 27. Qxe6 {[%emt 0:06:26]} Bxe6 {[%emt 0:00:02]} 28. f4 {[%emt 0:02:09]} Bc3 {[%emt 0:01:14]} 29. a3 {[%emt 0:00:38]} Bb2 {[%emt 0:01:22]} 30. Rd3 {[%emt 0:02:08]} Bf5 {[%emt 0:00:10]} 31. Rb3 {[%emt 0:00:13]} Bd4+ {[%emt 0:00:07]} 32. Kf1 {[%emt 0:00:10]} h5 {[%emt 0:01:39]} 33. h3 {[%emt 0:01:01]} Kg7 {[%emt 0:00:18]} 34. g4 {[%emt 0:02:21]} hxg4 {[%emt 0:00:17]} 35. hxg4 {[%emt 0:00:04]} Bxg4 {[%emt 0:00:55]} 36. Rg3 {[%emt 0:04:51]} Be6 {[%emt 0:00:28]} 37. Be4 {[%emt 0:03:07]} f5 {[%emt 0:00:23]} 38. Bg2 {[%emt 0:00:59]} Re8 {[%emt 0:00:40]} 39. a4 {[%emt 0:01:40]} Re7 {[%emt 0:00:31]} 40. Rd3 {[%emt 0:00:00]} Rd7 {[%emt 0:00:00]} 41. Bf3 {[%emt 0:01:31]} g5 {[%emt 0:24:27]} 42. fxg5 {[%emt 0:01:19]} Kg6 {[%emt 0:03:45]} 43. Kg2 {[%emt 0:01:00]} Kxg5 {[%emt 0:00:57]} 44. Nxb7 {[%emt 0:00:46]} Bc4 {[%emt 0:00:25]} 45. Bxc6 {[%emt 0:02:29]} Bxd3 {[%emt 0:01:35]} 46. Bxd7 {[%emt 0:00:01]} Be4+ {[%emt 0:00:11]} 47. Kf1 {[%emt 0:00:07]} Bxb7 48. c6 {[%emt 0:00:02]} Bxc6 {[%emt 0:03:11]} 49. Bxc6 {[%emt 0:00:06]} Bc3 {[%emt 0:00:15]} 50. b5 {[%emt 0:00:07]} axb5 {[%emt 0:00:11]} 51. axb5 {[%emt 0:00:05]} Bd4 {[%emt 0:00:04]} 52. Bd7 {[%emt 0:00:10]} 1/2-1/2

[Event "WYCC 2018 G16"]
[Site "Halkidiki"]
[Date "2018.10.21"]
[Round "3"]
[White "Zhang, Cindy"]
[Black "Meenal Gupta"]
[Result "0-1"]
[ECO "A45"]
[WhiteElo "1790"]
[BlackElo "2065"]
[Annotator "NA"]
[PlyCount "90"]
[EventDate "2018.10.20"]
[EventType "swiss"]
[EventCountry "GRE"]
[SourceTitle "playchess.com"]
[Source "ChessBase"]
[SourceQuality "1"]
[TimeControl "40/5400+30:1800+30"]

1. d4 {[%emt 0:00:00]} Nf6 {[%emt 0:00:00]} 2. Bf4 {[%emt 0:00:00]} e6 {[%emt 0:00:00]} 3. e3 {[%emt 0:00:00]} c5 {[%emt 0:01:01]} 4. Nd2 {[%emt 0:01:27]} b6 {[%emt 0:03:28]} 5. Ngf3 {[%emt 0:01:05]} Bb7 {[%emt 0:00:53]} 6. Nc4 {[%emt 0:02:10]} d5 {[%emt 0:01:45]} 7. Nce5 {[%emt 0:00:55]} Nbd7 {[%emt 0:05:07]} 8. c3 {[%emt 0:04:44]} a6 {[%emt 0:10:44]} 9. Bd3 {[%emt 0:07:40]} Be7 {[%emt 0:09:32]} 10. h3 {[%emt 0:04:33]} Nxe5 {[%emt 0:04:26]} 11. Nxe5 {[%emt 0:02:18]} Nd7 {[%emt 0:01:14]} 12. O-O {[%emt 0:04:30]} O-O {[%emt 0:02:57]} 13. Qh5 {[%emt 0:10:53]} f5 {[%emt 0:01:49]} 14. Rfd1 {[%emt 0:10:13]} c4 {[%emt 0:03:22]} 15. Bc2 {[%emt 0:00:38]} b5 {[%emt 0:00:08]} 16. Nxd7 {[%emt 0:13:13]} Qxd7 {[%emt 0:00:08]} 17. f3 {[%emt 0:01:35]} a5 {[%emt 0:10:06]} 18. Be5 {[%emt 0:04:38]} Bc6 {[%emt 0:03:40]} 19. e4 {[%emt 0:04:05]} Qc8 {[%emt 0:05:53]} 20. exf5 {[%emt 0:01:54]} exf5 {[%emt 0:00:07]} 21. f4 {[%emt 0:00:32]} Rf7 {[%emt 0:02:44]} 22. Re1 {[%emt 0:02:40]} Bf8 {[%emt 0:01:55]} 23. Re3 {[%emt 0:02:34]} Ra6 {[%emt 0:03:02]} 24. Rae1 {[%emt 0:02:53]} Bd7 {[%emt 0:00:53]} 25. Qf3 {[%emt 0:03:17]} Qb7 {[%emt 0:00:31]} 26. b3 {[%emt 0:05:49]} Rb6 {[%emt 0:02:17]} 27. Bd1 {[%emt 0:02:52]} Bc6 {[%emt 0:01:59]} 28. Qf2 {[%emt 0:00:44]} b4 {[%emt 0:02:52]} 29. bxc4 {[%emt 0:02:11]} dxc4 {[%emt 0:00:41]} 30. Be2 {[%emt 0:00:28]} Bd5 {[%emt 0:00:29]} 31. Qf1 {[%emt 0:00:50]} Qc6 {[%emt 0:00:57]} 32. Bh5 {[%emt 0:00:26]} g6 {[%emt 0:00:34]} 33. Bf3 {[%emt 0:01:30]} Rd7 {[%emt 0:03:34]} 34. h4 {[%emt 0:01:17]} h5 {[%emt 0:01:24]} 35. Bd1 {[%emt 0:01:32]} bxc3 {[%emt 0:00:50]} 36. Rg3 {[%emt 0:00:17]} Kh7 {[%emt 0:01:18]} 37. Bxh5 {[%emt 0:00:55]} gxh5 {[%emt 0:00:06]} 38. Rg5 {[%emt 0:00:07]} Rb2 {[%emt 0:01:00]} 39. Rxh5+ {[%emt 0:00:12]} Bh6 {[%emt 0:00:10]} 40. Re2 {[%emt 0:00:00]} Bxg2 {[%emt 0:00:00]} 41. Qf2 {[%emt 0:13:19]} Rxe2 {[%emt 0:06:51]} 42. Qxe2 {[%emt 0:00:10]} Bf3 {[%emt 0:00:46]} 43. Rxh6+ {[%emt 0:01:09]} Kxh6 {[%emt 0:00:10]} 44. Qc2 {[%emt 0:00:45]} Qg6+ {[%emt 0:00:25]} 45. Kf1 {[%emt 0:00:14]} Qg2+ {[%emt 0:00:17]} 0-1

[Event "WYCC 2018 G16"]
[Site "Halkidiki"]
[Date "2018.10.21"]
[Round "3"]
[White "Mikic, Ivana"]
[Black "Cramling Bellon, Anna"]
[Result "1/2-1/2"]
[ECO "B40"]
[WhiteElo "1783"]
[BlackElo "2025"]
[Annotator "NA"]
[PlyCount "114"]
[EventDate "2018.10.20"]
[EventType "swiss"]
[EventCountry "GRE"]
[SourceTitle "playchess.com"]
[Source "ChessBase"]
[SourceQuality "1"]
[TimeControl "40/5400+30:1800+30"]

1. e4 {[%emt 0:00:00]} c5 {[%emt 0:00:00]} 2. Nf3 {[%emt 0:00:00]} e6 {[%emt 0:00:00]} 3. d4 {[%emt 0:00:05]} cxd4 {[%emt 0:00:00]} 4. Nxd4 {[%emt 0:00:07]} Nf6 {[%emt 0:00:00]} 5. Nc3 {[%emt 0:01:24]} Nc6 {[%emt 0:00:07]} 6. Be3 {[%emt 0:01:08]} Bb4 {[%emt 0:00:47]} 7. Bd3 {[%emt 0:01:19]} O-O {[%emt 0:07:06]} 8. O-O {[%emt 0:04:05]} d5 {[%emt 0:05:34]} 9. exd5 {[%emt 0:01:22]} exd5 {[%emt 0:01:30]} 10. Nce2 {[%emt 0:04:49] B45: Sicilian Four Knights} (10. Nxc6 bxc6 11. Na4 Re8 12. Bf4 Bg4 13. f3 Be6 14. c3 Bd6 15. Bxd6 Qxd6 16. b4 d4 17. Ba6 Rad8 18. Qxd4 Qxd4+ 19. cxd4 Rxd4 {0-1 (54) Danilovic,A (2364)-Bakic,R (2414) Vrnjacka Banja 1999}) 10... Bd6 {[%emt 0:07:17]} 11. c3 {[%emt 0:04:39]} Ng4 {[%emt 0:08:09]} 12. Bf4 $146 {[%emt 0:05:43]} ({Predecessor:} 12. Nxc6 Bxh2+ 13. Kh1 Qh4 14. g3 Bxg3+ 15. Kg2 Nxe3+ 16. fxe3 Qh3+ {0-1 (16) Ruiz,J (2108)-Daverio,E (2047) Geneve 2007}) 12... Nxd4 {[%emt 0:12:05]} 13. cxd4 {[%emt 0:01:08]} Bxf4 {[%emt 0:00:05]} 14. Nxf4 {[%emt 0:00:08]} Qd6 {[%emt 0:08:51]} 15. g3 {[%emt 0:06:34]} g5 {[%emt 0:06:26]} 16. Ng2 {[%emt 0:03:17]} Qh6 {[%emt 0:11:37]} 17. h4 {[%emt 0:00:43]} gxh4 {[%emt 0:07:30]} 18. Nxh4 {[%emt 0:00:19]} f5 {[%emt 0:06:58]} 19. Qf3 {[%emt 0:08:36]} f4 {[%emt 0:03:22]} 20. Qxd5+ {[%emt 0:08:38]} Be6 {[%emt 0:00:01]} 21. Qe4 {[%emt 0:01:30]} Rad8 {[%emt 0:06:16]} 22. b3 {[%emt 0:07:13]} Kh8 {[%emt 0:01:31]} 23. Bc4 {[%emt 0:04:12]} Bf5 {[%emt 0:03:57]} 24. Qf3 {[%emt 0:11:47]} fxg3 {[%emt 0:01:56]} 25. fxg3 {[%emt 0:02:51]} Bd7 {[%emt 0:00:48]} 26. Qc3 {[%emt 0:01:35]} Qg7 {[%emt 0:00:33]} 27. Rxf8+ {[%emt 0:02:57]} Rxf8 {[%emt 0:00:01]} 28. Rc1 {[%emt 0:03:32]} Nf6 {[%emt 0:00:56]} 29. Rf1 {[%emt 0:02:59]} Ne4 {[%emt 0:00:30]} 30. Rxf8+ {[%emt 0:00:41]} Qxf8 {[%emt 0:00:01]} 31. Qe3 {[%emt 0:00:28]} Nf6 {[%emt 0:00:58]} 32. Qe5 {[%emt 0:00:40]} Kg7 {[%emt 0:00:36]} 33. Nf5+ {[%emt 0:01:13]} Bxf5 {[%emt 0:00:09]} 34. Qxf5 {[%emt 0:00:02]} Qe7 {[%emt 0:00:42]} 35. Qe5 {[%emt 0:00:28]} Qxe5 {[%emt 0:00:38]} 36. dxe5 {[%emt 0:00:01]} Ng4 {[%emt 0:00:12]} 37. Bd5 {[%emt 0:01:59]} b6 {[%emt 0:00:12]} 38. e6 {[%emt 0:00:31]} Kf6 {[%emt 0:00:10]} 39. b4 {[%emt 0:00:55]} Ne3 {[%emt 0:00:26]} 40. Bb3 {[%emt 0:00:00]} Nf5 {[%emt 0:00:00]} 41. Kf2 {[%emt 0:01:22]} Nd4 {[%emt 0:21:50]} 42. e7 {[%emt 0:02:46]} Kxe7 {[%emt 0:00:08]} 43. Bg8 {[%emt 0:00:53]} h6 {[%emt 0:01:48]} 44. Bh7 {[%emt 0:00:54]} Kd6 {[%emt 0:01:57]} 45. Be4 {[%emt 0:00:44]} Ke5 {[%emt 0:00:25]} 46. Ke3 {[%emt 0:01:30]} Nb5 {[%emt 0:05:34]} 47. Bc6 {[%emt 0:03:20]} Nd6 {[%emt 0:01:59]} 48. g4 {[%emt 0:01:41]} Nf7 {[%emt 0:00:24]} 49. Be8 {[%emt 0:04:46]} Ng5 {[%emt 0:00:59]} 50. a4 {[%emt 0:00:49]} Ne4 {[%emt 0:00:34]} 51. Bc6 {[%emt 0:01:20]} Nf6 {[%emt 0:00:25]} 52. Kf3 {[%emt 0:05:38]} Ng8 {[%emt 0:00:07]} 53. a5 {[%emt 0:00:48]} bxa5 {[%emt 0:00:54]} 54. bxa5 {[%emt 0:00:10]} Nf6 $11 {[%emt 0:01:21]} 55. a6 {[%emt 0:00:39]} Kd6 {[%emt 0:00:20]} 56. Be4 {[%emt 0:01:48]} Ke5 {[%emt 0:00:10]} 57. Bc6 {[%emt 0:00:07]} Kd6 {[%emt 0:00:13]} 1/2-1/2

[Event "WYCC 2018 G16"]
[Site "Halkidiki"]
[Date "2018.10.21"]
[Round "3"]
[White "Kalyva, Kyriaki"]
[Black "Kucharska, Honorata"]
[Result "1/2-1/2"]
[ECO "A53"]
[WhiteElo "1779"]
[BlackElo "2073"]
[Annotator "NA"]
[PlyCount "130"]
[EventDate "2018.10.20"]
[EventType "swiss"]
[EventCountry "GRE"]
[SourceTitle "playchess.com"]
[Source "ChessBase"]
[SourceQuality "1"]
[TimeControl "40/5400+30:1800+30"]

1. d4 {[%emt 0:00:00]} d6 {[%emt 0:00:00]} 2. c4 {[%emt 0:00:00]} Nf6 {[%emt 0:00:00]} 3. Nc3 {[%emt 0:00:00]} Nbd7 {[%emt 0:00:00]} 4. e4 {[%emt 0:00:00]} e5 {[%emt 0:00:00]} 5. Nf3 {[%emt 0:00:00]} g6 {[%emt 0:00:04]} 6. g3 {[%emt 0:01:09]} Bg7 {[%emt 0:00:50]} 7. Bg2 {[%emt 0:00:07]} O-O {[%emt 0:00:58]} 8. O-O {[%emt 0:00:32]} c6 {[%emt 0:02:23]} 9. Re1 {[%emt 0:04:42]} Qc7 {[%emt 0:02:19]} 10. b3 {[%emt 0:07:07] E68: King's Indian: Fianchetto: 6...Nbd7 7 0-0 e5 8 e4} Re8 {[%emt 0:06:16]} 11. Ba3 $146 {[%emt 0:07:25]} ({Predecessor:} 11. h3 exd4 12. Nxd4 Nc5 13. Bf4 Nh5 14. Be3 Nf6 15. f3 Ne6 16. Qd2 Nxd4 17. Bxd4 Be6 18. Rad1 Rad8 19. f4 Bc8 20. Qf2 b6 {1-0 (42) Rozum,I (2573)-Murzin,V (2340) Sochi 2018}) 11... Bf8 {[%emt 0:02:55]} 12. d5 {[%emt 0:04:42]} c5 {[%emt 0:01:24]} 13. Bc1 {[%emt 0:03:15]} a6 {[%emt 0:01:18]} 14. a4 {[%emt 0:04:57]} Bg7 {[%emt 0:03:29]} 15. Ra2 {[%emt 0:01:33]} Nf8 {[%emt 0:01:06]} 16. Qd3 {[%emt 0:08:20]} Bd7 {[%emt 0:03:17]} 17. Nh4 {[%emt 0:11:25]} Qd8 {[%emt 0:28:17]} 18. h3 {[%emt 0:05:45]} Nh5 {[%emt 0:02:12]} 19. Rae2 {[%emt 0:04:43]} Rb8 {[%emt 0:06:20]} 20. Nf3 {[%emt 0:03:03]} f5 {[%emt 0:03:26]} 21. Nh2 {[%emt 0:06:55]} Nf6 {[%emt 0:06:19]} 22. f4 {[%emt 0:03:10]} Nh5 {[%emt 0:05:16]} 23. exf5 {[%emt 0:01:27]} gxf5 {[%emt 0:03:44]} 24. fxe5 {[%emt 0:03:24]} Bxe5 {[%emt 0:00:42]} 25. g4 {[%emt 0:03:01]} Ng7 {[%emt 0:05:53]} 26. Nf3 {[%emt 0:01:51]} Ng6 {[%emt 0:01:14]} 27. Nxe5 {[%emt 0:04:10]} Nxe5 {[%emt 0:00:12]} 28. Qg3 {[%emt 0:00:18]} Qf6 {[%emt 0:02:29]} 29. gxf5 {[%emt 0:01:21]} Bxf5 {[%emt 0:03:05]} 30. Ne4 {[%emt 0:00:45]} Bxe4 {[%emt 0:01:41]} 31. Bxe4 {[%emt 0:00:05]} Ng6 {[%emt 0:00:47]} 32. Bb2 {[%emt 0:00:12]} Qf4 {[%emt 0:01:51]} 33. Qxf4 {[%emt 0:01:28]} Nxf4 {[%emt 0:00:06]} 34. Re3 {[%emt 0:00:14]} Rf8 {[%emt 0:03:10]} 35. Bc2 {[%emt 0:04:40]} Nf5 {[%emt 0:02:03]} 36. Rf3 {[%emt 0:00:53]} Nd4 {[%emt 0:00:41]} 37. Rg3+ {[%emt 0:01:13]} Kf7 {[%emt 0:00:05]} 38. Bxd4 {[%emt 0:00:40]} cxd4 {[%emt 0:00:03]} 39. Bxh7 {[%emt 0:02:03]} Rbe8 {[%emt 0:02:14]} 40. Rf1 {[%emt 0:00:00]} Ke7 {[%emt 0:00:00]} 41. Rgf3 {[%emt 0:10:41]} Ne2+ {[%emt 0:04:14]} 42. Kf2 {[%emt 0:00:28]} Nc3 {[%emt 0:00:47]} 43. Re1+ {[%emt 0:05:26]} Kd8 {[%emt 0:00:15]} 44. Rxe8+ {[%emt 0:00:34]} Rxe8 {[%emt 0:00:47]} 45. Rd3 {[%emt 0:00:31]} Rf8+ {[%emt 0:03:44]} 46. Rf3 {[%emt 0:02:03]} Re8 {[%emt 0:00:04]} 47. Rf4 {[%emt 0:03:14]} Re2+ {[%emt 0:03:23]} 48. Kf3 {[%emt 0:00:25]} Re3+ {[%emt 0:00:37]} 49. Kg4 {[%emt 0:02:39]} Ne2 {[%emt 0:01:51]} 50. Rf3 {[%emt 0:00:41]} Re7 {[%emt 0:03:11]} (50... Nc1 $16) 51. Bd3 {[%emt 0:01:30]} Rg7+ {[%emt 0:01:16]} 52. Kh4 {[%emt 0:01:29]} Nc1 {[%emt 0:01:04] [#]} 53. Kh5 {[%emt 0:02:57]} ({White should play} 53. b4 $1 $16) 53... Nxb3 {[%emt 0:00:39]} 54. Kh6 {[%emt 0:00:05]} Re7 {[%emt 0:00:17]} 55. h4 {[%emt 0:00:16]} Nc5 {[%emt 0:01:07]} (55... Re3 $1 $11 56. Be2 Ke7) 56. Kg6 {[%emt 0:01:18]} Nd7 {[%emt 0:00:17]} 57. Rh3 {[%emt 0:02:17]} Ne5+ {[%emt 0:02:02]} 58. Kg5 {[%emt 0:01:16]} Ke8 {[%emt 0:03:54]} 59. h5 {[%emt 0:01:24]} Kf8 {[%emt 0:01:01]} 60. h6 {[%emt 0:00:33]} Kg8 {[%emt 0:00:06]} 61. Kf6 {[%emt 0:00:09]} Re8 {[%emt 0:01:35]} 62. Bf5 {[%emt 0:00:56]} Kh8 {[%emt 0:01:31]} 63. Rb3 $2 {[%emt 0:00:40]} Rf8+ {[%emt 0:02:32]} 64. Ke6 {[%emt 0:00:21]} Re8+ $18 {[%emt 0:00:30]} (64... b6 $16 65. a5 (65. Rxb6 Re8+ 66. Kf6 Rf8+ 67. Ke6 Re8+ 68. Kf6 Rf8+ 69. Ke6 $11) 65... Re8+ 66. Kxd6 Nxc4+ 67. Kd7 Re5) 65. Kf6 {[%emt 0:00:38]} (65. Kxd6 $18 Nxc4+ 66. Kc5) 65... Rf8+ {[%emt 0:00:10]} 1/2-1/2

[Event "WYCC 2018 G16"]
[Site "Halkidiki"]
[Date "2018.10.21"]
[Round "3"]
[White "Staravoitava, Hanna"]
[Black "Duson, Robin"]
[Result "0-1"]
[ECO "A02"]
[WhiteElo "1768"]
[BlackElo "1999"]
[Annotator "NA"]
[PlyCount "92"]
[EventDate "2018.10.20"]
[EventType "swiss"]
[EventCountry "GRE"]
[SourceTitle "playchess.com"]
[Source "ChessBase"]
[SourceQuality "1"]
[TimeControl "40/5400+30:1800+30"]

1. f4 {[%emt 0:00:00]} Nf6 {[%emt 0:00:14]} 2. Nf3 {[%emt 0:00:00]} d5 {[%emt 0:00:25]} 3. e3 {[%emt 0:00:00]} e6 {[%emt 0:01:20]} 4. b3 {[%emt 0:00:32]} c5 {[%emt 0:03:31]} 5. Bb2 {[%emt 0:00:20]} Bd6 {[%emt 0:02:48]} 6. Bb5+ {[%emt 0:04:10]} Bd7 {[%emt 0:04:09]} 7. Bxd7+ {[%emt 0:00:24]} Nbxd7 {[%emt 0:00:15]} 8. O-O {[%emt 0:00:13]} O-O {[%emt 0:00:48]} 9. d3 {[%emt 0:00:17]} Qc7 {[%emt 0:02:53]} 10. Nc3 {[%emt 0:15:03]} a6 {[%emt 0:01:07]} 11. Qe1 {[%emt 0:07:44]} Rfe8 {[%emt 0:03:35]} 12. Qh4 {[%emt 0:08:27]} e5 {[%emt 0:05:02]} 13. Ng5 {[%emt 0:27:00]} h6 {[%emt 0:09:06]} 14. Nxd5 {[%emt 0:08:55]} Nxd5 {[%emt 0:17:16]} 15. Nxf7 {[%emt 0:00:06]} Re7 {[%emt 0:11:01]} 16. Nxd6 {[%emt 0:06:29]} Qxd6 {[%emt 0:00:19]} 17. fxe5 {[%emt 0:00:31]} Nxe5 {[%emt 0:01:14]} 18. e4 {[%emt 0:01:45]} Nf6 {[%emt 0:03:48]} 19. Rf5 {[%emt 0:01:17]} c4 {[%emt 0:05:44]} 20. Qg3 {[%emt 0:04:23]} Rae8 {[%emt 0:11:28]} 21. Raf1 {[%emt 0:00:24]} Nfd7 {[%emt 0:02:53]} 22. d4 {[%emt 0:01:30]} Nf7 {[%emt 0:00:29]} 23. e5 {[%emt 0:02:13]} Qd5 {[%emt 0:01:21]} 24. Qf4 {[%emt 0:02:56]} Nd8 {[%emt 0:03:07]} 25. Ba3 {[%emt 0:02:53]} Ne6 {[%emt 0:02:18]} 26. Qf2 {[%emt 0:03:18]} Nxd4 {[%emt 0:00:35]} 27. Rf4 {[%emt 0:00:34]} Ne6 {[%emt 0:01:45]} 28. bxc4 {[%emt 0:00:04]} Qc6 {[%emt 0:01:16]} 29. Rf5 {[%emt 0:00:23]} Ndc5 {[%emt 0:00:45]} 30. Rf7 {[%emt 0:01:07]} b6 {[%emt 0:01:16]} 31. Rf5 {[%emt 0:01:04]} Rd7 {[%emt 0:00:37]} 32. Rf7 {[%emt 0:00:45]} Qb7 {[%emt 0:01:18]} 33. Rf3 {[%emt 0:00:37]} Ne4 {[%emt 0:01:25]} 34. Qe1 {[%emt 0:01:00]} N4g5 {[%emt 0:00:11]} 35. Rg3 {[%emt 0:00:10]} Qe4 {[%emt 0:00:57]} 36. Re3 {[%emt 0:00:21]} Qxc4 {[%emt 0:00:24]} 37. h4 {[%emt 0:00:15]} Nf7 {[%emt 0:00:25]} 38. Qf2 {[%emt 0:00:26]} Nd4 {[%emt 0:00:51]} 39. c3 {[%emt 0:00:36]} Nc6 {[%emt 0:00:40]} 40. Qf5 {[%emt 0:00:00]} Nfxe5 {[%emt 0:00:00]} 41. Qh5 {[%emt 0:06:57]} Rf7 {[%emt 0:04:47]} 42. Rxf7 {[%emt 0:03:55]} Qxf7 {[%emt 0:00:12]} 43. Qe2 {[%emt 0:00:03]} b5 {[%emt 0:03:32]} 44. h5 {[%emt 0:03:16]} Qc4 {[%emt 0:00:57]} 45. Qd2 {[%emt 0:00:53]} Rd8 {[%emt 0:00:59]} 46. Qe1 {[%emt 0:01:50]} Qa4 {[%emt 0:01:01]} 0-1